[Event "ONJK 2024 ABC"]
[Site "Velp, Netherlands"]
[Date "2024.08.07"]
[Round "8.17"]
[White "Bloemberg, Jesper"]
[Black "Koorevaar, Sarah-Joy"]
[Result "1/2-1/2"]
[TimeControl "90 minutes + 30 seconds"]
[WhiteElo "1692"]
[BlackElo "1531"]

1. d4 {[%clk 01:30:55]} {[%emt 00:00:04]} e6 {[%clk 01:30:55]} {[%emt
00:00:06]} 2. c4 {[%clk 01:31:13]} {[%emt 00:00:11]} Nf6 {[%clk 01:31:19]}
{[%emt 00:00:07]} 3. Nf3 {[%clk 01:31:35]} {[%emt 00:00:07]} d5 {[%clk
01:31:36]} {[%emt 00:00:14]} 4. Nc3 {[%clk 01:31:53]} {[%emt 00:00:11]} h6
{[%clk 01:31:42]} {[%emt 00:00:25]} 5. cxd5 {[%clk 01:31:32]} {[%emt 00:00:51]}
exd5 {[%clk 01:31:47]} {[%emt 00:00:25]} 6. Bf4 {[%clk 01:31:45]} {[%emt
00:00:17]} Bb4 {[%clk 01:30:45]} {[%emt 00:01:32]} 7. e3 {[%clk 01:30:01]}
{[%emt 00:02:14]} O-O {[%clk 01:28:32]} {[%emt 00:02:43]} 8. Bd3 {[%clk
01:28:36]} {[%emt 00:01:53]} Nc6 {[%clk 01:22:12]} {[%emt 00:06:50]} 9. O-O
{[%clk 01:26:32]} {[%emt 00:02:35]} Nh5 {[%clk 01:19:17]} {[%emt 00:03:25]} 10.
Bg3 {[%clk 01:26:29]} {[%emt 00:00:33]} Re8 {[%clk 01:07:40]} {[%emt 00:12:08]}
11. a3 {[%clk 01:10:25]} {[%emt 00:16:35]} Nxg3 {[%clk 01:06:30]} {[%emt
00:01:39]} 12. hxg3 {[%clk 01:10:26]} {[%emt 00:00:29]} Bxc3 {[%clk 01:00:22]}
{[%emt 00:06:38]} 13. bxc3 {[%clk 01:10:15]} {[%emt 00:00:40]} Bg4 {[%clk
00:53:00]} {[%emt 00:07:52]} 14. Rb1 {[%clk 01:07:46]} {[%emt 00:02:59]} b6
{[%clk 00:51:12]} {[%emt 00:02:18]} 15. c4 {[%clk 01:06:25]} {[%emt 00:01:51]}
Na5 {[%clk 00:46:46]} {[%emt 00:04:55]} 16. Qa4 {[%clk 00:59:48]} {[%emt
00:07:09]} dxc4 {[%clk 00:27:48]} {[%emt 00:19:29]} 17. Bxc4 {[%clk 00:59:55]}
{[%emt 00:00:22]} Nxc4 {[%clk 00:28:08]} {[%emt 00:00:12]} 18. Qxc4 {[%clk
01:00:14]} {[%emt 00:00:09]} Be6 {[%clk 00:27:52]} {[%emt 00:00:46]} 19. Qc3
{[%clk 00:59:39]} {[%emt 00:01:06]} Rc8 {[%clk 00:25:27]} {[%emt 00:02:54]} 20.
Rfd1 {[%clk 00:54:51]} {[%emt 00:05:17]} Qd5 {[%clk 00:22:34]} {[%emt
00:03:25]} 21. Ne5 {[%clk 00:51:30]} {[%emt 00:03:50]} f6 {[%clk 00:07:53]}
{[%emt 00:15:11]} 22. Nc6 {[%clk 00:49:23]} {[%emt 00:02:36]} a5 {[%clk
00:07:02]} {[%emt 00:01:22]} 23. Na7 {[%clk 00:49:12]} {[%emt 00:00:39]} Rb8
{[%clk 00:02:41]} {[%emt 00:04:53]} 24. Nb5 {[%clk 00:48:58]} {[%emt 00:00:40]}
Rec8 {[%clk 00:02:56]} {[%emt 00:00:19]} 25. Qb2 {[%clk 00:44:10]} {[%emt
00:05:19]} Qa2 {[%clk 00:02:13]} {[%emt 00:01:11]} 26. Qxa2 {[%clk 00:44:09]}
{[%emt 00:00:33]} Bxa2 {[%clk 00:02:38]} {[%emt 00:00:05]} 27. Rbc1 {[%emt
00:01:36]} c6 {[%clk 00:01:32]} {[%emt 00:01:35]} 28. Na7 {[%clk 00:43:08]}
{[%emt 00:00:27]} Rc7 {[%clk 00:00:51]} {[%emt 00:01:10]} 29. Nxc6 {[%clk
00:41:04]} {[%emt 00:02:34]} Re8 {[%clk 00:00:36]} {[%emt 00:00:46]} 30. Rd2
{[%clk 00:39:24]} {[%emt 00:02:09]} Bd5 {[%clk 00:00:32]} {[%emt 00:00:34]} 31.
Rdc2 {[%clk 00:39:18]} {[%emt 00:00:37]} Kh7 {[%clk 00:00:32]} {[%emt
00:00:30]} 32. Nb4 {[%clk 00:39:17]} {[%emt 00:00:31]} Rxc2 {[%clk 00:00:55]}
{[%emt 00:00:07]} 33. Nxc2 {[%clk 00:39:40]} {[%emt 00:00:07]} Rc8 {[%clk
00:01:18]} {[%emt 00:00:06]} 34. Rb1 {[%clk 00:38:24]} {[%emt 00:01:46]} Rxc2
{[%clk 00:01:31]} {[%emt 00:00:17]} 35. Rxb6 {[%clk 00:38:49]} {[%emt
00:00:06]} Ra2 {[%clk 00:01:43]} {[%emt 00:00:18]} 36. Rb5 {[%clk 00:39:01]}
{[%emt 00:00:15]} Ra1+ {[%clk 00:01:28]} {[%emt 00:00:48]} 37. Kh2 {[%clk
00:37:54]} {[%emt 00:01:36]} Bc4 {[%clk 00:01:03]} {[%emt 00:00:55]} 38. Rxa5
{[%clk 00:38:09]} {[%emt 00:00:16]} Ra2 {[%clk 00:01:17]} {[%emt 00:00:14]} 39.
Rf5 {[%clk 00:36:24]} {[%emt 00:02:15]} Rxa3 {[%clk 00:01:31]} {[%emt
00:00:18]} 40. Rc5 {[%clk 00:34:18]} {[%emt 00:02:35]} Bf7 {[%clk 00:01:09]}
{[%emt 00:00:53]} 41. g4 {[%clk 00:34:05]} {[%emt 00:00:42]} Rd3 {[%clk
00:01:05]} {[%emt 00:00:34]} 42. Kg3 {[%clk 00:33:40]} {[%emt 00:00:55]} g5
{[%clk 00:00:52]} {[%emt 00:00:43]} 43. Rc7 {[%clk 00:33:21]} {[%emt 00:00:48]}
Kg6 {[%clk 00:01:16]} {[%emt 00:00:06]} 44. Re7 {[%clk 00:33:25]} {[%emt
00:00:26]} Bb3 {[%clk 00:01:12]} {[%emt 00:00:35]} 45. f4 {[%clk 00:32:50]}
{[%emt 00:01:05]} gxf4+ {[%clk 00:01:10]} {[%emt 00:00:32]} 46. Kxf4 {[%clk
00:33:10]} {[%emt 00:00:09]} Rd2 {[%clk 00:01:08]} {[%emt 00:00:34]} 47. Kg3
{[%clk 00:31:57]} {[%emt 00:01:42]} Bc4 {[%clk 00:00:50]} {[%emt 00:00:48]}
1/2-1/2

[Event "ONJK 2024 ABC"]
[Site "Velp, Netherlands"]
[Date "2024.08.07"]
[Round "8.18"]
[White "Vogels, Mathijs"]
[Black "Zouridis, Christian"]
[Result "1-0"]
[TimeControl "90 minutes + 30 seconds"]
[WhiteElo "1732"]
[BlackElo "1713"]

1. e4 {[%clk 01:30:59]} e5 {[%clk 01:30:43]} {[%emt 00:00:17]} 2. Nf3 {[%clk
01:31:24]} {[%emt 00:00:05]} Nc6 {[%clk 01:31:07]} {[%emt 00:00:07]} 3. Bc4
{[%clk 01:31:48]} {[%emt 00:00:06]} Bc5 {[%clk 01:31:14]} {[%emt 00:00:23]} 4.
c3 {[%clk 01:32:12]} {[%emt 00:00:06]} d6 {[%clk 01:31:21]} {[%emt 00:00:22]} 5.
d4 {[%clk 01:32:28]} {[%emt 00:00:14]} exd4 {[%clk 01:31:44]} {[%emt 00:00:07]}
6. cxd4 {[%clk 01:32:51]} {[%emt 00:00:07]} Bb4+ {[%clk 01:32:10]} {[%emt
00:00:04]} 7. Bd2 {[%clk 01:33:17]} {[%emt 00:00:05]} Bxd2+ {[%clk 01:32:12]}
{[%emt 00:00:28]} 8. Nbxd2 {[%clk 01:33:39]} {[%emt 00:00:07]} Bg4 {[%clk
01:32:02]} {[%emt 00:00:40]} 9. h3 {[%clk 01:33:49]} {[%emt 00:00:20]} Bh5
{[%clk 01:32:25]} {[%emt 00:00:07]} 10. d5 {[%clk 01:29:39]} {[%emt 00:04:41]}
Ne5 {[%clk 01:32:08]} {[%emt 00:00:47]} 11. Be2 {[%clk 01:26:50]} {[%emt
00:03:19]} Nxf3+ {[%clk 01:28:46]} {[%emt 00:03:52]} 12. Bxf3 {[%clk 01:26:49]}
{[%emt 00:00:30]} Bxf3 {[%clk 01:28:52]} {[%emt 00:00:25]} 13. Nxf3 {[%clk
01:27:08]} {[%emt 00:00:11]} Nf6 {[%clk 01:28:53]} {[%emt 00:00:29]} 14. O-O
{[%clk 01:27:30]} {[%emt 00:00:07]} O-O {[%clk 01:27:34]} {[%emt 00:01:49]} 15.
Re1 {[%clk 01:27:33]} {[%emt 00:00:27]} Re8 {[%clk 01:27:50]} {[%emt 00:00:15]}
16. Qc2 {[%clk 01:27:51]} {[%emt 00:00:11]} Qd7 {[%clk 01:28:06]} {[%emt
00:00:15]} 17. Rac1 {[%clk 01:28:03]} {[%emt 00:00:17]} Rac8 {[%clk 01:28:20]}
{[%emt 00:00:15]} 18. Nd4 {[%clk 01:26:13]} {[%emt 00:02:21]} a6 {[%clk
01:27:40]} {[%emt 00:01:11]} 19. f3 {[%clk 01:26:20]} {[%emt 00:00:23]} g6
{[%clk 01:26:32]} {[%emt 00:01:37]} 20. Qc3 {[%clk 01:24:53]} {[%emt 00:01:56]}
Qe7 {[%clk 01:25:20]} {[%emt 00:01:43]} 21. Qd2 {[%clk 01:21:58]} {[%emt
00:03:25]} Nh5 {[%clk 01:23:31]} {[%emt 00:02:20]} 22. Qh6 {[%clk 01:15:32]}
{[%emt 00:06:55]} Qe5 {[%clk 01:22:11]} {[%emt 00:01:50]} 23. Qd2 {[%clk
01:10:54]} {[%emt 00:05:08]} Nf4 {[%clk 01:16:33]} {[%emt 00:06:08]} 24. Ne2
{[%clk 01:09:47]} {[%emt 00:01:37]} Nxe2+ {[%clk 01:16:18]} {[%emt 00:00:45]}
25. Qxe2 {[%clk 01:10:00]} {[%emt 00:00:17]} Qd4+ {[%clk 01:16:01]} {[%emt
00:00:46]} 26. Qf2 {[%clk 01:10:23]} {[%emt 00:00:08]} Qxf2+ {[%clk 01:15:28]}
{[%emt 00:01:03]} 27. Kxf2 {[%clk 01:10:48]} {[%emt 00:00:05]} Re7 {[%clk
01:14:34]} {[%emt 00:01:24]} 28. Re3 {[%clk 01:11:06]} {[%emt 00:00:12]} Rce8
{[%clk 01:10:15]} {[%emt 00:04:50]} 29. Rec3 {[%clk 01:10:12]} {[%emt
00:01:24]} Rc8 {[%clk 01:07:16]} {[%emt 00:03:28]} 30. Rb3 {[%clk 01:09:54]}
{[%emt 00:00:49]} b6 {[%clk 01:07:27]} {[%emt 00:00:18]} 31. Rxb6 {[%clk
01:10:10]} {[%emt 00:00:15]} Ra8 {[%clk 01:07:04]} {[%emt 00:00:52]} 32. Rbc6
{[%clk 01:10:22]} {[%emt 00:00:19]} Ra7 {[%clk 01:07:21]} {[%emt 00:00:13]} 33.
R1c4 {[%clk 01:10:35]} {[%emt 00:00:16]} Rb7 {[%clk 01:07:05]} {[%emt
00:00:46]} 34. b3 {[%clk 01:10:47]} {[%emt 00:00:19]} Ra7 {[%clk 01:07:07]}
{[%emt 00:00:27]} 35. Ra4 {[%clk 01:11:11]} {[%emt 00:00:06]} f5 {[%clk
01:07:19]} {[%emt 00:00:18]} 36. exf5 {[%clk 01:11:11]} {[%emt 00:00:30]} Re5
{[%clk 01:06:59]} {[%emt 00:00:50]} 37. fxg6 {[%clk 01:11:00]} {[%emt
00:00:41]} Rxd5 {[%clk 01:07:06]} {[%emt 00:00:23]} 38. gxh7+ {[%clk 01:11:19]}
{[%emt 00:00:12]} Kxh7 {[%clk 01:07:21]} {[%emt 00:00:15]} 39. Rcxa6 {[%clk
01:11:37]} {[%emt 00:00:11]} Rxa6 {[%clk 01:07:12]} {[%emt 00:00:39]} 40. Rxa6
{[%clk 01:12:02]} {[%emt 00:00:05]} Rd2+ {[%clk 01:07:33]} {[%emt 00:00:09]} 41.
Kg3 {[%clk 01:11:07]} {[%emt 00:01:26]} Rc2 {[%clk 01:07:40]} {[%emt 00:00:23]}
42. Ra7 {[%clk 01:11:18]} {[%emt 00:00:18]} d5 {[%clk 01:07:59]} {[%emt
00:00:12]} 43. Kf4 {[%clk 01:11:36]} {[%emt 00:00:12]} Rxg2 {[%clk 01:07:39]}
{[%emt 00:00:50]} 44. Rxc7+ {[%clk 01:12:01]} {[%emt 00:00:05]} Kg6 {[%clk
01:07:36]} {[%emt 00:00:32]} 45. Ra7 {[%clk 01:12:08]} {[%emt 00:00:25]} d4
{[%clk 01:07:11]} {[%emt 00:00:55]} 46. Ke4 {[%clk 01:12:32]} {[%emt 00:00:05]}
Rd2 {[%clk 01:07:20]} {[%emt 00:00:20]} 47. Ra4 {[%clk 01:12:36]} {[%emt
00:00:27]} d3 {[%clk 01:07:12]} {[%emt 00:00:38]} 48. Ke3 {[%clk 01:12:26]}
{[%emt 00:00:40]} Rd1 {[%clk 01:07:03]} {[%emt 00:00:39]} 49. Rd4 {[%clk
01:12:50]} {[%emt 00:00:06]} Ra1 {[%clk 01:06:55]} {[%emt 00:00:38]} 50. a4
{[%clk 01:13:00]} {[%emt 00:00:20]} Rh1 {[%clk 01:06:54]} {[%emt 00:00:31]} 51.
Rxd3 {[%clk 01:12:58]} {[%emt 00:00:32]} Rxh3 {[%clk 01:06:29]} {[%emt
00:00:54]} 52. Ke4 {[%clk 01:13:24]} {[%emt 00:00:05]} Rh4+ {[%clk 01:06:30]}
{[%emt 00:00:29]} 53. f4 {[%clk 01:13:45]} {[%emt 00:00:10]} Rh5 {[%clk
01:06:15]} {[%emt 00:00:44]} 54. f5+ {[%clk 01:13:48]} {[%emt 00:00:27]} Kf6
{[%clk 01:06:09]} {[%emt 00:00:36]} 55. Rd6+ {[%clk 01:13:47]} {[%emt
00:00:31]} Ke7 {[%clk 01:05:28]} {[%emt 00:01:03]} 56. Rb6 {[%clk 01:13:56]}
{[%emt 00:00:29]} Rh4+ {[%clk 01:05:42]} {[%emt 00:00:16]} 57. Ke5 {[%clk
01:14:18]} {[%emt 00:00:07]} Rh1 {[%clk 01:05:44]} {[%emt 00:00:29]} 58. Rb7+
{[%clk 01:14:42]} {[%emt 00:00:06]} Kf8 {[%clk 01:05:53]} {[%emt 00:00:21]} 59.
Kf6 {[%clk 01:15:03]} {[%emt 00:00:07]} Rh6+ {[%clk 01:06:03]} {[%emt
00:00:22]} 60. Kg5 {[%clk 01:15:23]} {[%emt 00:00:09]} Rc6 {[%clk 01:06:14]}
{[%emt 00:00:20]} 61. f6 {[%clk 01:15:40]} {[%emt 00:00:13]} Rc5+ {[%clk
01:06:06]} {[%emt 00:00:39]} 62. Kg6 {[%clk 01:16:02]} {[%emt 00:00:07]} Rc8
{[%clk 01:06:14]} {[%emt 00:00:23]} 63. Rh7 {[%clk 01:16:17]} {[%emt 00:00:14]}
Ke8 {[%clk 01:06:11]} {[%emt 00:00:32]} 64. f7+ {[%clk 01:16:36]} {[%emt
00:00:11]} Kd7 {[%clk 01:06:16]} {[%emt 00:00:26]} 65. f8=Q+ {[%clk 01:16:49]}
{[%emt 00:00:17]} Ke6 {[%clk 01:06:16]} {[%emt 00:00:30]} 66. Qf5+ {[%clk
01:16:58]} {[%emt 00:00:20]} Kd6 {[%clk 01:06:36]} {[%emt 00:00:11]} 67. Rd7+
{[%clk 01:17:20]} {[%emt 00:00:08]} Kc6 {[%clk 01:06:32]} {[%emt 00:00:35]} 68.
Qb5# {[%clk 01:17:09]} {[%emt 00:00:04]} Kd5 {[%clk 01:30:30]} {[%emt
00:00:16]} 1-0

[Event "ONJK 2024 ABC"]
[Site "Velp, Netherlands"]
[Date "2024.08.07"]
[Round "8.19"]
[White "Breider, Jayden"]
[Black "Hesse, Frederik"]
[Result "1/2-1/2"]
[TimeControl "90 minutes + 30 seconds"]
[WhiteElo "1594"]
[BlackElo "1684"]

1. e4 {[%clk 01:30:58]} c6 {[%clk 01:30:55]} {[%emt 00:00:06]} 2. d4 {[%clk
01:31:22]} {[%emt 00:00:07]} d5 {[%clk 01:31:21]} {[%emt 00:00:04]} 3. Nc3
{[%clk 01:31:48]} {[%emt 00:00:04]} dxe4 {[%clk 01:31:30]} {[%emt 00:00:20]} 4.
Nxe4 {[%clk 01:32:06]} {[%emt 00:00:09]} Bf5 {[%clk 01:31:50]} {[%emt
00:00:13]} 5. Ng3 {[%clk 01:32:31]} {[%emt 00:00:05]} Bg6 {[%clk 01:32:09]}
{[%emt 00:00:11]} 6. h4 {[%clk 01:32:55]} {[%emt 00:00:06]} h5 {[%clk
01:32:23]} {[%emt 00:00:16]} 7. Nh3 {[%clk 01:33:19]} {[%emt 00:00:06]} Nf6
{[%clk 01:32:26]} {[%emt 00:00:28]} 8. Nf4 {[%clk 01:33:21]} {[%emt 00:00:28]}
c5 {[%clk 01:28:57]} {[%emt 00:03:59]} 9. Nxg6 {[%clk 01:31:35]} {[%emt
00:02:15]} fxg6 {[%clk 01:29:14]} {[%emt 00:00:13]} 10. Bb5+ {[%clk 01:31:24]}
{[%emt 00:00:41]} Nc6 {[%clk 01:29:23]} {[%emt 00:00:21]} 11. Qd3 {[%clk
01:15:14]} {[%emt 00:16:41]} Kf7 {[%clk 01:26:25]} {[%emt 00:03:28]} 12. Bxc6
{[%clk 01:15:06]} {[%emt 00:00:39]} bxc6 {[%clk 01:26:34]} {[%emt 00:00:21]} 13.
Qb3+ {[%clk 01:04:59]} {[%emt 00:10:36]} Qd5 {[%clk 01:25:27]} {[%emt
00:01:36]} 14. Qxd5+ {[%clk 00:57:35]} {[%emt 00:07:55]} cxd5 {[%clk 01:25:46]}
{[%emt 00:00:12]} 15. dxc5 {[%clk 00:57:57]} {[%emt 00:00:07]} e5 {[%clk
01:26:05]} {[%emt 00:00:10]} 16. b4 {[%clk 00:57:07]} {[%emt 00:01:22]} a5
{[%clk 01:26:17]} {[%emt 00:00:17]} 17. c3 {[%clk 00:57:19]} {[%emt 00:00:18]}
d4 {[%clk 01:26:04]} {[%emt 00:00:43]} 18. Bd2 {[%clk 00:53:34]} {[%emt
00:04:16]} Nd5 {[%clk 01:25:18]} {[%emt 00:01:16]} 19. Ne4 {[%clk 00:52:26]}
{[%emt 00:01:38]} dxc3 {[%clk 01:25:30]} {[%emt 00:00:18]} 20. Bxc3 {[%clk
00:50:44]} {[%emt 00:02:11]} Nxc3 {[%clk 01:25:43]} {[%emt 00:00:18]} 21. Nxc3
{[%clk 00:51:06]} {[%emt 00:00:08]} axb4 {[%clk 01:26:07]} {[%emt 00:00:06]} 22.
Ne4 {[%clk 00:50:00]} {[%emt 00:01:36]} b3 {[%clk 01:25:12]} {[%emt 00:01:26]}
23. a3 {[%clk 00:48:08]} {[%emt 00:02:21]} Ra5 {[%clk 01:24:44]} {[%emt
00:00:58]} 24. Rh3 {[%clk 00:46:03]} {[%emt 00:02:35]} b2 {[%clk 01:23:21]}
{[%emt 00:01:53]} 25. Rb1 {[%clk 00:45:55]} {[%emt 00:00:38]} Bxc5 {[%clk
01:22:54]} {[%emt 00:00:58]} 26. Nxc5 {[%clk 00:45:20]} {[%emt 00:01:04]} Rxc5
{[%clk 01:22:59]} {[%emt 00:00:25]} 27. Rxb2 {[%clk 00:45:13]} {[%emt
00:00:37]} Ra8 {[%clk 01:23:00]} {[%emt 00:00:29]} 28. Rb7+ {[%clk 00:44:26]}
{[%emt 00:01:16]} Kg8 {[%clk 01:22:14]} {[%emt 00:01:15]} 29. Rb6 {[%clk
00:43:21]} {[%emt 00:01:36]} Rc2 {[%clk 01:17:53]} {[%emt 00:04:51]} 30. Rxg6
{[%clk 00:35:27]} {[%emt 00:08:25]} Rb8 {[%clk 01:17:30]} {[%emt 00:00:53]} 31.
Rd3 {[%clk 00:33:11]} {[%emt 00:02:46]} Rb1+ {[%clk 01:17:28]} {[%emt
00:00:32]} 32. Rd1 {[%clk 00:33:23]} {[%emt 00:00:18]} Rbb2 {[%clk 01:17:49]}
{[%emt 00:00:10]} 33. Rg5 {[%clk 00:21:48]} {[%emt 00:12:05]} Re2+ {[%clk
01:17:27]} {[%emt 00:00:51]} 34. Kf1 {[%clk 00:22:07]} {[%emt 00:00:11]} Rxf2+
{[%clk 01:17:50]} {[%emt 00:00:08]} 35. Kg1 {[%clk 00:22:30]} {[%emt 00:00:06]}
e4 {[%clk 01:15:30]} {[%emt 00:02:50]} 36. Re1 {[%clk 00:18:45]} {[%emt
00:04:16]} Rf4 {[%clk 01:15:02]} {[%emt 00:00:56]} 37. g3 {[%clk 00:19:11]}
{[%emt 00:00:06]} Rff2 {[%clk 01:15:05]} {[%emt 00:00:27]} 38. Rxe4 {[%clk
00:19:29]} {[%emt 00:00:11]} Rfc2 {[%clk 01:14:07]} {[%emt 00:01:28]} 39. Re1
{[%clk 00:15:44]} {[%emt 00:04:15]} Ra2 {[%clk 01:14:05]} {[%emt 00:00:32]} 40.
a4 {[%clk 00:14:30]} {[%emt 00:01:44]} Rxa4 {[%clk 01:13:48]} {[%emt 00:00:47]}
41. Rxh5 {[%clk 00:14:25]} {[%emt 00:00:35]} Raa2 {[%clk 01:13:33]} {[%emt
00:00:46]} 42. Rg5 {[%clk 00:14:01]} {[%emt 00:00:54]} Rg2+ {[%clk 01:13:24]}
{[%emt 00:00:39]} 43. Kh1 {[%clk 00:14:24]} {[%emt 00:00:07]} Rgf2 {[%clk
01:11:30]} {[%emt 00:02:21]} 44. Kg1 {[%clk 00:13:21]} {[%emt 00:01:35]} Rfb2
{[%clk 01:09:59]} {[%emt 00:02:01]} 45. h5 {[%clk 00:11:18]} {[%emt 00:02:34]}
Kh7 {[%clk 01:09:49]} {[%emt 00:00:39]} 46. g4 {[%clk 00:11:25]} {[%emt
00:00:23]} Rb4 {[%clk 01:09:16]} {[%emt 00:01:02]} 47. Kh1 {[%clk 00:08:55]}
{[%emt 00:03:01]} Raa4 {[%clk 01:08:06]} {[%emt 00:01:41]} 48. Re7 {[%clk
00:08:53]} {[%emt 00:00:32]} Rb2 {[%clk 01:06:07]} {[%emt 00:02:28]} 49. Rgxg7+
{[%clk 00:06:27]} {[%emt 00:02:55]} Kh8 {[%clk 01:06:12]} {[%emt 00:00:26]} 50.
Ra7 {[%clk 00:06:53]} {[%emt 00:00:05]} Rc4 {[%clk 01:06:07]} {[%emt 00:00:34]}
51. Rgc7 {[%clk 00:07:09]} {[%emt 00:00:14]} Rxg4 {[%clk 01:05:21]} {[%emt
00:01:16]} 52. h6 {[%clk 00:04:04]} {[%emt 00:03:34]} Rb5 {[%clk 01:05:20]}
{[%emt 00:00:31]} 53. Rh7+ {[%clk 00:03:34]} {[%emt 00:01:01]} Kg8 {[%clk
01:05:20]} {[%emt 00:00:30]} 54. Rhg7+ {[%clk 00:04:02]} {[%emt 00:00:02]} Rxg7
{[%clk 01:05:35]} {[%emt 00:00:15]} 55. Rxg7+ {[%clk 00:04:18]} Kh8 {[%clk
01:05:49]} {[%emt 00:00:27]} 56. Rg6 {[%clk 00:04:00]} {[%emt 00:00:50]} Kh7
{[%clk 01:05:47]} {[%emt 00:00:31]} 57. Rd6 {[%clk 00:04:12]} {[%emt 00:00:19]}
Rh5+ {[%clk 01:06:08]} {[%emt 00:00:10]} 58. Kg2 {[%clk 00:04:36]} {[%emt
00:00:06]} Rxh6 {[%clk 01:06:29]} {[%emt 00:00:09]} 59. Rd7+ {[%clk 00:04:16]}
{[%emt 00:00:49]} Kg8 {[%clk 01:06:42]} {[%emt 00:00:17]} 60. Kg3 {[%clk
00:04:34]} {[%emt 00:00:13]} Ra6 {[%clk 01:06:45]} {[%emt 00:00:27]} 61. Kg4
{[%clk 00:04:49]} {[%emt 00:00:14]} Kf8 {[%clk 01:07:07]} {[%emt 00:00:09]}
1/2-1/2

[Event "ONJK 2024 ABC"]
[Site "Velp, Netherlands"]
[Date "2024.08.07"]
[Round "8.20"]
[White "Zeenni, Joseph"]
[Black "Maes, Lander"]
[Result "1-0"]
[TimeControl "90 minutes + 30 seconds"]
[WhiteElo "1688"]
[BlackElo "1645"]

1. e4 {[%clk 01:30:58]} {[%emt 00:00:01]} c5 {[%clk 01:30:57]} {[%emt
00:00:03]} 2. Nf3 {[%clk 01:31:24]} {[%emt 00:00:04]} d6 {[%clk 01:31:24]}
{[%emt 00:00:03]} 3. d4 {[%clk 01:31:50]} {[%emt 00:00:04]} cxd4 {[%clk
01:31:51]} {[%emt 00:00:03]} 4. Nxd4 {[%clk 01:32:16]} {[%emt 00:00:04]} Nf6
{[%clk 01:32:19]} {[%emt 00:00:03]} 5. Nc3 {[%clk 01:32:38]} {[%emt 00:00:07]}
g6 {[%clk 01:32:47]} {[%emt 00:00:03]} 6. Be3 {[%clk 01:33:03]} {[%emt
00:00:05]} Bg7 {[%clk 01:33:13]} {[%emt 00:00:05]} 7. f3 {[%clk 01:32:50]}
{[%emt 00:00:43]} O-O {[%emt 00:00:14]} 8. Qd2 {[%clk 01:33:09]} {[%emt
00:00:07]} Nc6 {[%clk 01:33:24]} {[%emt 00:00:38]} 9. Nb3 {[%clk 01:29:02]}
{[%emt 00:04:36]} Bd7 {[%clk 01:31:24]} {[%emt 00:02:31]} 10. Bh6 {[%clk
01:28:39]} {[%emt 00:00:53]} Re8 {[%clk 01:29:48]} {[%emt 00:02:05]} 11. Bxg7
{[%clk 01:28:28]} {[%emt 00:00:41]} Kxg7 {[%clk 01:29:08]} {[%emt 00:01:11]} 12.
Be2 {[%clk 01:22:28]} {[%emt 00:06:30]} a6 {[%clk 01:20:02]} {[%emt 00:09:36]}
13. O-O {[%clk 01:18:32]} {[%emt 00:04:25]} Rc8 {[%clk 01:19:13]} {[%emt
00:01:20]} 14. Kh1 {[%clk 01:16:21]} {[%emt 00:02:41]} h5 {[%clk 01:13:04]}
{[%emt 00:06:39]} 15. Qg5 {[%clk 01:07:23]} {[%emt 00:09:28]} Ne5 {[%clk
00:56:35]} {[%emt 00:16:59]} 16. f4 {[%clk 01:02:13]} {[%emt 00:05:40]} Nc4
{[%clk 00:53:50]} {[%emt 00:03:15]} 17. Bxc4 {[%clk 00:48:46]} {[%emt
00:13:57]} Rxc4 {[%clk 00:53:54]} {[%emt 00:00:26]} 18. Rae1 {[%clk 00:45:00]}
{[%emt 00:04:16]} b5 {[%clk 00:30:00]} {[%emt 00:24:24]} 19. a3 {[%clk
00:24:55]} {[%emt 00:20:35]} Bc8 {[%clk 00:17:19]} {[%emt 00:13:11]} 20. Nd2
{[%clk 00:21:06]} {[%emt 00:04:18]} Rc5 {[%clk 00:16:44]} {[%emt 00:01:06]} 21.
Qg3 {[%clk 00:20:24]} {[%emt 00:01:12]} Bb7 {[%clk 00:15:39]} {[%emt 00:01:36]}
22. Nb3 {[%clk 00:15:25]} {[%emt 00:05:28]} Rc8 {[%clk 00:13:26]} {[%emt
00:02:43]} 23. Nd4 {[%clk 00:13:16]} {[%emt 00:02:38]} Kh7 {[%clk 00:09:20]}
{[%emt 00:04:37]} 24. e5 {[%clk 00:06:29]} {[%emt 00:07:18]} dxe5 {[%clk
00:08:42]} {[%emt 00:01:07]} 25. fxe5 {[%clk 00:05:54]} {[%emt 00:01:05]} Qxd4
{[%clk 00:04:40]} {[%emt 00:04:32]} 26. exf6 {[%clk 00:04:13]} {[%emt
00:02:11]} exf6 {[%clk 00:03:05]} {[%emt 00:02:04]} 27. Rd1 {[%clk 00:02:57]}
{[%emt 00:01:47]} Qb6 {[%clk 00:01:31]} {[%emt 00:02:04]} 28. Rd6 {[%clk
00:02:15]} {[%emt 00:01:11]} Qc7 {[%clk 00:00:35]} {[%emt 00:01:27]} 29. Rfxf6
{[%clk 00:01:36]} {[%emt 00:01:09]} Rcd8 {[%clk 00:00:39]} {[%emt 00:00:26]} 30.
Rxd8 {[%clk 00:01:14]} {[%emt 00:00:52]} Qxd8 {[%clk 00:00:34]} {[%emt
00:00:35]} 31. Rxf7+ {[%clk 00:01:21]} {[%emt 00:00:23]} Kh8 {[%clk 00:00:46]}
{[%emt 00:00:18]} 32. Rxb7 {[%clk 00:01:23]} {[%emt 00:00:29]} Qd2 {[%clk
00:00:51]} {[%emt 00:00:24]} 33. h3 {[%clk 00:00:41]} {[%emt 00:01:12]} Re1+
{[%clk 00:01:14]} {[%emt 00:00:06]} 34. Kh2 {[%clk 00:00:59]} {[%emt 00:00:14]}
Re8 {[%clk 00:00:36]} {[%emt 00:01:08]} 35. Qxg6 {[%clk 00:01:05]} {[%emt
00:00:23]} Qf4+ {[%clk 00:00:40]} {[%emt 00:00:27]} 36. Qg3 {[%clk 00:01:20]}
{[%emt 00:00:16]} Qxg3+ {[%emt 00:00:35]} 37. Kxg3 {[%clk 00:01:47]} {[%emt
00:00:01]} 1-0